bitfinex/quotes_SOLUSD_20260217
["timestamp","ask_amount","ask_price","bid_price","bid_amount"]
[1771351187731,29.8072849,83.873,83.825,0.5]
[1771351187904,2.46325399,83.86,83.825,0.5]
[1771351188979,2.46325399,83.85,83.825,0.5]
[1771351189176,44.1272849,83.873,83.825,0.5]
[1771351189382,2.46325399,83.84,83.821,0.5]
[1771351189575,2.46325399,83.85,83.821,0.5]
[1771351190102,2.46325399,83.85,83.823,0.5]
[1771351190477,11.92620067,83.849,83.823,0.5]
[1771351190792,2.46325399,83.86,83.823,0.5]
[1771351191295,2.46325399,83.87,83.831,0.5]
[1771351191795,4.61729252,83.895,83.831,0.5]
[1771351191796,2.46325399,83.85,83.831,0.5]
[1771351191994,2.46325399,83.84,83.819,0.5]
[1771351192698,14.39087004,83.84,83.819,0.5]
[1771351193289,14.39087004,83.84,83.794,0.5]
[1771351193290,2.46325399,83.83,83.794,0.5]
[1771351193601,2.46325399,83.82,83.796,0.5]
[1771351194302,2.46325399,83.82,83.798,0.5]
[1771351195393,11.93046922,83.819,83.798,0.5]
[1771351198585,2.46325399,83.81,83.798,0.5]
[1771351198778,2.46325399,83.82,83.8,0.5]
[1771351200785,2.46325399,83.82,83.802,0.5]
[1771351200985,2.46325399,83.83,83.802,0.5]
[1771351201892,2.46325399,83.82,83.802,0.5]
[1771351202096,2.46325399,83.84,83.802,0.5]
[1771351203011,2.46325399,83.83,83.804,0.5]
[1771351203823,2.46325399,83.85,83.821,0.46581151]
[1771351204287,0.48998392,83.829,83.806,0.46581151]
[1771351204486,41.73672473,83.859,83.781,0.46581151]
[1771351204487,0.48998392,83.819,83.781,0.46581151]
[1771351204702,0.48998392,83.799,83.771,0.46581151]
[1771351205009,2.46325399,83.79,83.771,0.46581151]
[1771351205209,2.46325399,83.79,83.761,18.64]
[1771351205210,2.46325399,83.8,83.763,0.46581151]
[1771351205397,2.46325399,83.8,83.771,0.46581151]
[1771351205596,11.93189275,83.809,83.772,0.46581151]
[1771351205998,2.46325399,83.8,83.772,0.46581151]
[1771351206397,2.46325399,83.81,83.772,0.46581151]
[1771351206704,2.46325399,83.8,83.772,0.46581151]
[1771351207002,14.39649137,83.8,83.774,0.46581151]
[1771351207203,2.46325399,83.8,83.774,0.46581151]
[1771351207502,2.46325399,83.79,83.774,0.46581151]
[1771351208707,2.46325399,83.78,83.771,18.64]
[1771351208888,2.46325399,83.78,83.758,0.46581151]
[1771351209092,2.46325399,83.77,83.758,0.46581151]
[1771351209290,0.48998392,83.794,83.76,0.46581151]
[1771351209497,2.46325399,83.8,83.761,0.46581151]
[1771351209806,2.95323791,83.81,83.781,0.46581151]
[1771351210220,2.46325399,83.8,83.781,0.46581151]
[1771351210410,2.46325399,83.82,83.781,0.46581151]
[1771351210610,11.92934,83.827,83.791,0.46581151]
[1771351210807,11.92934,83.827,83.792,0.46581151]
[1771351210992,2.46325399,83.82,83.792,0.46581151]
[1771351211390,2.46325399,83.82,83.794,0.46581151]
[1771351211595,0.48998392,83.809,83.783,0.46581151]
[1771351211795,2.46325399,83.8,83.762,0.46581151]
[1771351212012,0.48998392,83.779,83.755,0.46581151]
[1771351212197,2.46325399,83.77,83.748,0.46581151]
[1771351212398,2.46325399,83.78,83.75,2.46325399]
[1771351212600,2.46325399,83.78,83.751,0.46581151]
[1771351212798,0.48998392,83.769,83.744,18.64]
[1771351213194,0.48998392,83.769,83.741,11.94158178]
[1771351213595,2.46325399,83.77,83.741,11.94158178]
[1771351213991,7.34429329,83.77,83.741,11.94158178]
[1771351214815,11.93474083,83.789,83.751,0.477516]
[1771351215404,11.93474083,83.789,83.741,41.79553623]
[1771351215405,7.34429329,83.77,83.742,0.477516]
[1771351215600,0.453772,83.769,83.744,0.477516]
[1771351216298,7.34429329,83.78,83.744,0.477516]
[1771351216494,7.34429329,83.78,83.751,0.477516]
[1771351217315,7.34429329,83.78,83.748,18.68]
[1771351217316,0.453772,83.779,83.748,18.68]
[1771351217505,7.34429329,83.77,83.749,11.94044107]
[1771351217702,7.34429329,83.77,83.748,18.68]
[1771351217913,0.453772,83.769,83.748,18.68]
[1771351218411,7.34429329,83.76,83.748,18.68]
[1771351218613,0.453772,83.759,83.74,0.2]
[1771351218921,7.34429329,83.75,83.74,0.2]
[1771351219300,7.79806529,83.77,83.741,0.477516]
[1771351219617,0.453772,83.769,83.742,0.477516]
[1771351220012,7.34429329,83.76,83.742,0.477516]
[1771351220196,7.34429329,83.76,83.742,12.41895518]
[1771351222217,0.453772,83.769,83.742,12.41895518]
[1771351222400,0.453772,83.769,83.743,0.477516]
[1771351222914,7.34429329,83.78,83.751,0.477516]
[1771351223617,0.453772,83.769,83.749,18.7]
[1771351224010,0.453772,83.769,83.744,12.41859344]
[1771351224212,7.34429329,83.76,83.744,11.94107744]
[1771351224521,0.453772,83.759,83.74,0.2]
[1771351224705,0.453772,83.759,83.741,11.94158178]
[1771351224905,7.34429329,83.76,83.741,11.94158178]
[1771351226023,0.453772,83.789,83.751,0.477516]
[1771351226316,0.453772,83.789,83.75,7.34429329]
[1771351226317,7.34429329,83.8,83.771,0.477516]
[1771351226519,0.453772,83.799,83.771,0.477516]
[1771351226711,7.34429329,83.79,83.761,18.72]
[1771351226914,7.34429329,83.79,83.762,0.477516]
[1771351227605,7.34429329,83.79,83.763,12.41596137]
[1771351227924,0.453772,83.779,83.761,18.72]
[1771351228119,0.453772,83.779,83.752,18.7]
[1771351228305,0.453772,83.779,83.751,0.477516]
[1771351228505,7.34429329,83.78,83.751,0.477516]
[1771351229122,0.453772,83.779,83.751,0.477516]
[1771351229617,0.453772,83.779,83.752,11.94001337]
[1771351229818,7.34429329,83.78,83.751,11.9401285]
[1771351229819,0.453772,83.777,83.751,11.9401285]
[1771351230018,7.34318686,83.76,83.749,18.7]
[1771351230408,0.453772,83.763,83.749,18.7]
[1771351231225,7.34318686,83.77,83.749,30.64035649]
[1771351231423,0.453772,83.779,83.75,0.477516]
[1771351231819,11.93630786,83.778,83.75,0.477516]
[1771351232014,0.453772,83.769,83.749,18.7]
[1771351232234,7.34318686,83.76,83.741,18.72]
[1771351232530,0.453772,83.759,83.741,18.72]
[1771351232831,7.34318686,83.75,83.74,0.2]
[1771351233521,0.453772,83.749,83.74,0.2]
[1771351234612,11.94058365,83.748,83.74,0.2]
[1771351235115,0.453772,83.739,83.71,0.2]
[1771351235322,7.34318686,83.72,83.702,18.74]
[1771351235531,7.34318686,83.72,83.694,11.94828781]
[1771351235532,7.79695886,83.72,83.694,11.94828781]
[1771351236130,7.34318686,83.71,83.693,12.42594024]
[1771351236332,0.453772,83.728,83.694,0.477516]
[1771351236511,7.34318686,83.72,83.694,0.477516]
[1771351236708,7.34318686,83.72,83.696,0.477516]
[1771351238237,0.453772,83.719,83.693,18.74]
[1771351238416,7.34318686,83.7,83.678,18.74]
[1771351238611,7.34318686,83.69,83.669,18.74]
[1771351238810,7.34318686,83.69,83.666,11.95219485]
[1771351239028,7.34318686,83.69,83.667,0.477516]
[1771351239936,0.453772,83.716,83.681,0.43418849]
[1771351240133,0.453772,83.716,83.69,7.34318686]
[1771351240433,41.8010271,83.73,83.666,41.83291103]
[1771351240434,0.453772,83.727,83.701,0.43418849]
[1771351240638,0.453772,83.717,83.682,0.43418849]
[1771351240822,0.453772,83.709,83.682,0.43418849]
[1771351241027,0.453772,83.709,83.682,19.19418849]
[1771351241336,0.453772,83.709,83.682,0.43418849]
[1771351243542,0.453772,83.719,83.684,0.43418849]
[1771351244329,0.453772,83.727,83.691,0.43418849]
[1771351244523,11.94372118,83.726,83.691,0.43418849]
[1771351244929,12.39573834,83.726,83.691,0.43418849]
[1771351245447,0.45201716,83.726,83.701,0.43418849]
[1771351245945,6.24688399,83.787,83.7,7.34318686]
[1771351245946,0.45201716,83.736,83.703,0.43418849]
[1771351246142,11.94243745,83.735,83.703,0.43418849]
[1771351246448,0.45201716,83.735,83.703,0.43418849]
[1771351246648,12.39445461,83.735,83.703,0.43418849]
[1771351246831,0.45201716,83.734,83.703,0.43418849]
[1771351247146,7.34318686,83.74,83.703,0.43418849]
[1771351247346,7.34318686,83.74,83.702,41.81501038]
[1771351247347,7.34318686,83.76,83.721,0.43418849]
[1771351247552,0.45201716,83.759,83.73,7.77737535]
[1771351247847,0.45201716,83.771,83.731,0.43418849]
[1771351248026,6.24482563,83.817,83.741,0.43418849]
[1771351248027,0.45201716,83.779,83.741,0.43418849]
[1771351248227,0.45201716,83.779,83.742,0.43418849]
[1771351248526,0.45201716,83.787,83.751,0.43418849]
[1771351248939,0.45201716,83.779,83.751,0.43418849]
[1771351249139,0.45201716,83.779,83.75,7.34318686]
[1771351250039,0.45201716,83.779,83.744,0.43418849]
[1771351250445,0.45201716,83.779,83.75,7.34318686]
[1771351250628,0.45201716,83.777,83.744,0.43418849]
[1771351250829,0.45201716,83.777,83.751,0.43418849]
[1771351252125,7.34318686,83.77,83.743,11.94125147]
[1771351252325,0.45201716,83.769,83.743,11.94125147]
[1771351253140,0.45201716,83.769,83.74,7.34318686]
[1771351253331,0.45201716,83.769,83.74,11.94172438]
[1771351254947,0.45201716,83.769,83.736,18.78]
[1771351255272,7.34318686,83.76,83.731,0.43418849]
[1771351255625,7.34318686,83.76,83.73,7.34318686]
[1771351255626,0.47139128,83.749,83.723,12.37821324]
[1771351255848,7.34318686,83.73,83.706,0.43418849]
[1771351256147,7.81457814,83.73,83.706,19.21418849]
[1771351256723,7.81457814,83.73,83.707,11.94643219]
[1771351256945,0.47139128,83.75,83.711,0.43418849]
[1771351257141,0.47139128,83.739,83.712,18.76]
[1771351257355,0.47139128,83.729,83.712,18.76]
[1771351257731,0.47139128,83.729,83.712,17.10566526]
[1771351258139,0.47139128,83.729,83.697,11.9477726]
[1771351258323,7.34318686,83.72,83.697,11.9477726]
[1771351258529,0.47139128,83.722,83.698,0.43418849]
[1771351258941,0.47139128,83.719,83.695,18.76]
[1771351259551,0.47139128,83.709,83.671,0.43418849]
[1771351259749,0.47139128,83.699,83.672,18.76]
[1771351259948,0.47139128,83.706,83.673,0.43418849]
[1771351260438,0.47139128,83.714,83.681,0.43418849]
[1771351260643,7.34318686,83.72,83.681,0.43418849]
[1771351260840,7.81457814,83.72,83.681,0.43418849]
[1771351261040,11.94243745,83.735,83.701,0.43418849]
[1771351261338,7.81457814,83.72,83.693,0.43418849]
[1771351261839,7.81457814,83.71,83.687,18.78]
[1771351262161,0.47139128,83.718,83.688,0.43418849]
[1771351262650,0.47139128,83.718,83.687,18.78]
[1771351263048,12.41639647,83.717,83.687,19.21418849]
[1771351263233,11.94500519,83.717,83.688,0.43418849]
[1771351263740,12.41639647,83.717,83.688,0.43418849]
[1771351263940,11.94500519,83.717,83.688,0.43418849]
[1771351264246,0.47139128,83.716,83.688,0.43418849]
[1771351265036,14.3,83.743,83.68,7.34318686]
[1771351265037,0.47139128,83.707,83.68,0.43418849]
[1771351265537,0.47139128,83.707,83.681,0.43418849]
[1771351266446,0.47139128,83.707,83.682,0.43418849]
[1771351267451,11.94657491,83.706,83.682,12.38406697]
[1771351267653,11.94657491,83.706,83.683,0.43418849]
[1771351268435,11.94598104,83.711,83.69,7.34318686]
[1771351268640,0.47139128,83.714,83.683,11.94985839]
[1771351268641,0.47139128,83.746,83.701,0.43418849]
[1771351268839,0.47139128,83.744,83.713,0.43418849]
[1771351269040,0.47139128,83.739,83.703,19.21418849]
[1771351269241,0.47139128,83.729,83.695,0.43418849]
[1771351269455,7.34318686,83.73,83.695,0.43418849]
[1771351269456,0.47139128,83.727,83.695,0.43418849]
[1771351269647,0.47139128,83.727,83.7,7.34318686]
[1771351269841,0.47139128,83.727,83.701,0.43418849]
[1771351271253,0.47139128,83.727,83.7,7.34318686]
[1771351271554,14.34,83.744,83.671,0.43418849]
[1771351271555,0.47139128,83.709,83.671,0.43418849]
[1771351271755,7.34318686,83.69,83.663,0.43418849]
[1771351272053,0.47139128,83.699,83.663,0.43418849]
[1771351272761,0.47139128,83.679,83.651,11.95442971]
[1771351272959,0.47139128,83.672,83.65,12.1544858]
[1771351273155,0.47139128,83.699,83.661,0.43418849]
[1771351273539,11.94771679,83.698,83.662,11.95285792]
[1771351273843,0.47139128,83.697,83.663,0.43418849]
[1771351274044,0.47139128,83.689,83.655,11.9538581]
[1771351274245,0.47139128,83.689,83.656,0.43418849]
[1771351274651,0.48444181,83.679,83.65,0.2]
[1771351274850,0.48444181,83.679,83.651,11.95442971]
[1771351275041,41.81700876,83.698,83.651,11.95442971]
[1771351275042,7.34318686,83.69,83.661,0.43418849]
[1771351275241,0.48444181,83.697,83.661,0.43418849]
[1771351275438,11.94771679,83.698,83.671,0.43418849]
[1771351277064,0.48444181,83.697,83.671,0.43418849]
[1771351277748,11.94800229,83.696,83.671,0.43418849]
[1771351278561,0.48444181,83.699,83.672,0.43418849]
[1771351278965,11.94543326,83.714,83.681,0.43418849]
[1771351279170,11.94343588,83.728,83.7,7.34318686]
[1771351279351,0.48444181,83.73,83.701,0.43418849]
[1771351279667,11.94227096,83.737,83.701,0.43418849]
[1771351279965,11.9416014,83.741,83.711,0.43418849]
[1771351280271,0.48444181,83.749,83.711,0.43418849]
[1771351280459,11.94027114,83.751,83.73,7.34318686]
[1771351280762,14.36,83.77,83.702,41.81501038]
[1771351280763,12.42060719,83.779,83.741,0.43418849]
[1771351280961,0.48444181,83.778,83.75,7.34318686]
[1771351281344,0.48444181,83.778,83.76,7.34318686]
[1771351281544,11.93565481,83.783,83.76,7.34318686]
[1771351282163,7.34318686,83.78,83.75,7.34318686]
[1771351282347,0.48444181,83.779,83.74,19.71899801]
[1771351282658,0.48444181,83.779,83.729,48.63807544]
[1771351282659,0.48444181,83.759,83.729,18.78]
[1771351282856,0.48444181,83.769,83.74,7.34318686]
[1771351283071,0.48444181,83.769,83.741,0.43418849]
[1771351283255,0.48444181,83.778,83.75,7.34318686]
[1771351283964,11.93516816,83.786,83.76,7.34318686]
[1771351284165,0.48444181,83.779,83.742,0.43418849]
[1771351284350,0.48444181,83.779,83.74,7.34318686]
[1771351285150,0.48444181,83.779,83.741,11.94158178]
[1771351286070,0.48444181,83.769,83.73,7.34318686]
[1771351286252,0.48444181,83.759,83.725,0.43418849]
[1771351286448,0.48444181,83.759,83.72,7.34318686]
[1771351287075,0.48444181,83.759,83.73,7.34318686]
[1771351288167,0.48444181,83.747,83.711,11.94583264]
[1771351288369,0.48444181,83.747,83.72,7.34318686]
[1771351288755,0.48444181,83.747,83.711,11.94583264]
[1771351289052,0.48444181,83.747,83.71,7.34318686]
[1771351289380,11.94058365,83.748,83.711,0.43418849]
[1771351289579,11.94058365,83.748,83.72,7.34318686]
[1771351289952,11.94058365,83.748,83.72,7.34839671]
[1771351290469,12.42502546,83.748,83.72,7.34839671]
[1771351290665,0.48444181,83.747,83.718,0.43418849]
[1771351290865,0.48444181,83.747,83.72,7.34839671]
[1771351292274,0.48444181,83.747,83.711,0.43418849]
[1771351292559,7.34839671,83.74,83.711,0.43418849]
[1771351292762,0.48444181,83.739,83.71,7.34839671]
[1771351294266,0.48444181,83.739,83.711,12.38004984]
[1771351294474,10.48681617,83.746,83.712,0.49023762]
[1771351294670,10.48681617,83.746,83.721,0.49023762]
[1771351294975,10.48681617,83.746,83.712,0.49023762]
[1771351295180,19.28872001,83.75,83.721,0.49023762]
[1771351295560,11.9403233,83.75,83.721,0.49023762]
[1771351297061,0.48444181,83.749,83.721,0.49023762]
[1771351297273,47.74611131,83.777,83.665,47.80959976]
[1771351297274,11.93914075,83.759,83.731,0.49023762]
[1771351297474,11.93914075,83.759,83.722,11.94429182]
[1771351297475,11.93824513,83.765,83.741,0.49023762]
[1771351297685,11.93824513,83.765,83.722,11.94429182]
[1771351297686,0.48444181,83.764,83.732,0.49023762]
[1771351298062,11.93824513,83.765,83.741,0.49023762]
[1771351298459,11.93759027,83.769,83.741,0.49023762]
[1771351298679,11.93616538,83.779,83.751,0.49023762]
[1771351298880,11.93616538,83.779,83.76,7.34839671]
[1771351299066,11.93539076,83.785,83.76,7.83863433]
[1771351299261,0.48444181,83.769,83.731,0.49023762]
[1771351299567,0.48444181,83.759,83.72,7.34839671]
[1771351299865,4.61729252,83.781,83.721,0.49023762]
[1771351299866,7.34839671,83.75,83.721,0.49023762]
[1771351300169,0.48444181,83.749,83.721,0.49023762]
[1771351301375,0.48444181,83.747,83.72,7.34839671]
[1771351302081,0.48444181,83.747,83.721,0.49023762]
[1771351302982,29.8482452,83.758,83.721,0.49023762]
[1771351302983,11.94001289,83.753,83.721,0.49023762]
[1771351303279,11.94001289,83.753,83.72,19.29287441]
[1771351303280,11.94001289,83.753,83.73,7.83863433]
[1771351303966,11.94001289,83.753,83.73,0.49023762]
[1771351304166,0.48444181,83.752,83.73,0.49023762]
[1771351304379,0.48444181,83.752,83.721,0.49023762]
[1771351304788,11.93937023,83.757,83.731,0.45505127]
[1771351304992,12.42707613,83.757,83.731,0.45505127]
[1771351305292,0.4877059,83.756,83.731,0.45505127]
[1771351305683,11.93958569,83.755,83.731,0.45505127]
[1771351306186,0.4877059,83.754,83.731,0.45505127]
[1771351308276,0.4877059,83.749,83.713,0.45505127]
[1771351308674,0.4877059,83.749,83.714,11.94543326]
[1771351308870,0.4877059,83.749,83.715,0.45505127]
[1771351309371,0.4877059,83.739,83.7,7.34839671]
[1771351309690,0.4877059,83.729,83.692,0.45505127]
[1771351309886,0.4877059,83.727,83.692,0.45505127]
[1771351310094,0.4877059,83.727,83.694,0.45505127]
[1771351310489,11.94343588,83.728,83.701,0.45505127]
[1771351310793,0.4877059,83.727,83.701,0.45505127]
[1771351311373,11.94204666,83.738,83.701,0.45505127]
[1771351311587,11.94204666,83.738,83.711,0.45505127]
[1771351311797,0.4877059,83.737,83.711,0.45505127]
[1771351313498,7.34839671,83.74,83.701,12.3999976]
[1771351313499,0.48883869,83.735,83.701,12.3999976]
[1771351313671,0.48883869,83.735,83.702,0.45270904]
[1771351315999,0.48883869,83.733,83.704,0.45270904]
[1771351316180,12.43017398,83.743,83.711,0.45270904]
[1771351316380,0.48883869,83.739,83.711,0.45270904]
[1771351316884,11.94133529,83.743,83.711,0.45270904]
[1771351317082,12.43017398,83.743,83.711,0.45270904]
[1771351317893,2.46986714,83.75,83.711,0.45270904]
[1771351318087,11.93963777,83.755,83.721,0.45270904]
[1771351319496,0.48883869,83.755,83.723,0.45270904]
[1771351319685,0.48883869,83.749,83.723,0.45270904]
[1771351320183,0.48883869,83.757,83.731,0.45270904]
[1771351320494,11.93846751,83.763,83.731,0.45270904]
[1771351321290,0.48883869,83.771,83.741,0.45270904]
[1771351321795,0.48883869,83.771,83.73,2.46986714]
[1771351321796,11.93759027,83.769,83.75,2.46986714]
[1771351321978,12.42642896,83.769,83.748,0.45270904]
[1771351322174,0.48883869,83.768,83.74,7.34328169]
[1771351322380,0.48883869,83.768,83.733,0.45270904]
[1771351322774,0.48883869,83.768,83.734,11.94258007]
[1771351323212,0.48883869,83.768,83.735,0.45270904]
[1771351323491,0.48883869,83.768,83.741,0.45270904]
[1771351323675,11.93787529,83.767,83.741,0.45270904]
[1771351323871,12.42671398,83.767,83.741,0.45270904]
[1771351324495,0.48883869,83.766,83.741,0.45270904]
[1771351324996,0.48883869,83.766,83.741,12.39416234]
[1771351325288,14.46,83.786,83.741,12.39416234]
[1771351325289,7.83212038,83.78,83.751,0.45270904]
[1771351325494,0.48883869,83.78,83.751,0.45270904]
[1771351325688,11.93668199,83.776,83.751,0.45270904]
[1771351326186,0.48883869,83.775,83.751,0.45270904]
[1771351326394,11.93668199,83.776,83.751,0.45270904]
[1771351326695,0.48883869,83.775,83.751,0.45270904]
[1771351327599,11.93610384,83.78,83.751,0.45270904]
[1771351328383,0.48883869,83.779,83.751,0.45270904]
[1771351328786,0.48883869,83.779,83.744,0.45270904]
[1771351329399,0.48883869,83.769,83.734,18.7]
[1771351329584,0.48883869,83.759,83.728,0.45270904]
[1771351330113,0.48883869,83.749,83.72,0.45270904]
[1771351330401,0.48883869,83.749,83.721,0.45270904]
[1771351330782,7.34328169,83.76,83.731,0.45270904]
[1771351331095,14.48,83.766,83.731,0.45270904]
[1771351331096,0.48883869,83.766,83.731,0.45270904]
[1771351331296,0.48883869,83.766,83.74,7.79599073]
[1771351331481,0.48883869,83.766,83.741,0.45270904]
[1771351332396,0.48883869,83.789,83.761,0.45270904]
[1771351332601,0.48883869,83.789,83.744,0.45270904]
[1771351332893,0.48883869,83.789,83.76,7.34328169]
[1771351333198,0.48883869,83.789,83.751,0.45270904]
[1771351333500,0.48883869,83.789,83.761,0.45270904]
[1771351334094,11.93393791,83.795,83.771,0.45270904]
[1771351334494,12.42225565,83.799,83.772,0.48166053]
[1771351334702,11.93341696,83.799,83.772,0.48166053]
[1771351335199,0.45574984,83.798,83.772,0.48166053]
[1771351335398,11.93341696,83.799,83.754,0.48166053]
[1771351335399,0.45574984,83.789,83.754,0.48166053]
[1771351336504,0.45574984,83.779,83.74,7.34328169]
[1771351336681,7.79903153,83.76,83.737,0.48166053]
[1771351337082,0.45574984,83.759,83.731,0.48166053]
[1771351338606,0.45574984,83.757,83.731,0.48166053]
[1771351340102,0.45574984,83.757,83.732,11.94286533]
[1771351340304,0.45574984,83.757,83.733,0.48166053]
[1771351340818,0.45574984,83.765,83.733,0.48166053]
[1771351341105,14.48,83.774,83.751,0.48166053]
[1771351341106,0.45574984,83.774,83.751,0.48166053]
[1771351341883,0.45574984,83.769,83.732,0.48166053]
[1771351342089,0.45574984,83.759,83.727,18.68]
[1771351342286,0.45574984,83.759,83.721,0.48166053]
[1771351342511,0.45574984,83.759,83.722,0.48166053]
[1771351342683,0.45574984,83.759,83.731,0.48166053]
[1771351343088,0.45574984,83.757,83.731,0.48166053]
[1771351343995,0.45574984,83.757,83.724,0.48166053]
[1771351344192,0.45574984,83.749,83.719,12.42625904]
[1771351344396,0.45574984,83.749,83.721,0.48166053]
[1771351345206,0.45574984,83.747,83.722,0.48166053]
[1771351346197,11.94048595,83.749,83.723,0.48166053]
[1771351347607,0.45574984,83.739,83.71,7.34328169]
[1771351347790,41.79158864,83.749,83.721,0.48166053]
[1771351347791,0.45574984,83.748,83.721,0.48166053]
[1771351347992,0.45574984,83.757,83.731,0.48166053]
[1771351348494,0.45574984,83.769,83.741,0.48166053]
[1771351348690,41.77458433,83.783,83.741,0.48166053]
[1771351348691,0.45574984,83.779,83.741,0.48166053]
[1771351348891,0.45574984,83.779,83.751,0.48166053]
[1771351349605,0.45574984,83.777,83.742,0.48166053]
[1771351349810,0.45574984,83.769,83.734,12.42421736]
[1771351350203,0.45574984,83.759,83.73,7.34511122]
[1771351350507,0.45574984,83.759,83.721,0.48166053]
[1771351350886,0.45574984,83.759,83.73,7.82677175]
[1771351351091,0.45574984,83.759,83.731,0.48166053]
[1771351352020,0.45574984,83.757,83.731,0.48166053]
[1771351352309,0.45574984,83.757,83.733,0.48166053]
[1771351354599,11.93915805,83.758,83.733,0.48166053]
[1771351354797,0.45574984,83.772,83.751,0.48166053]
[1771351355210,11.93612599,83.78,83.751,0.48166053]
[1771351355414,0.45574984,83.782,83.751,0.48166053]
[1771351355809,12.39152457,83.782,83.751,0.48166053]
[1771351356013,0.45574984,83.798,83.761,0.48166053]
[1771351356525,101.50302907,83.853,83.732,41.80002866]
[1771351356526,11.93175038,83.81,83.781,0.48166053]
[1771351356820,0.45574984,83.809,83.771,0.48166053]
[1771351357132,0.45574984,83.799,83.77,7.34635905]
[1771351357703,0.45574984,83.799,83.762,0.48166053]
[1771351357903,0.45574984,83.789,83.76,7.34635905]
[1771351358199,0.45574984,83.789,83.742,29.85333105]
[1771351358200,0.45574984,83.789,83.77,7.34635905]
[1771351358401,0.45574984,83.808,83.781,0.48166053]
[1771351358702,11.9321775,83.807,83.79,7.34635905]
[1771351358903,0.45574984,83.806,83.781,0.48166053]
[1771351360406,0.45574984,83.806,83.768,11.9376316]
[1771351360407,0.45574984,83.806,83.77,7.82801958]
[1771351360913,0.45574984,83.799,83.77,7.82801958]
[1771351361106,0.45574984,83.799,83.77,7.34635905]
[1771351362030,0.45574984,83.789,83.76,7.34635905]
[1771351364120,41.76361791,83.805,83.746,0.48166053]
[1771351364121,0.45574984,83.779,83.746,0.48166053]
[1771351364305,0.45574984,83.769,83.74,7.34635905]
[1771351364616,0.45574984,83.769,83.741,0.46176732]
[1771351365607,11.93773278,83.768,83.741,0.46176732]
[1771351365808,0.45211521,83.775,83.751,0.46176732]
[1771351366007,11.93672198,83.776,83.751,0.46176732]
[1771351366226,0.45211521,83.775,83.751,0.46176732]
[1771351366805,19.28246913,83.78,83.751,0.46176732]
[1771351367010,0.45211521,83.779,83.751,0.46176732]
[1771351367617,0.45211521,83.779,83.753,0.46176732]
[1771351367920,11.93630786,83.778,83.753,0.46176732]
[1771351368728,11.93630786,83.778,83.733,18.66]
[1771351368729,0.45211521,83.777,83.746,0.46176732]
[1771351369812,0.45211521,83.775,83.747,11.94072623]
[1771351370015,0.45211521,83.775,83.75,7.34635905]
[1771351371215,0.45211521,83.769,83.733,18.66]
[1771351371412,0.45211521,83.759,83.726,12.4054885]
[1771351371624,0.45211521,83.749,83.72,7.34635905]
[1771351372036,0.45211521,83.747,83.721,0.46176732]
[1771351372237,11.94058365,83.748,83.721,0.46176732]
[1771351373237,11.9399925,83.753,83.721,0.46176732]
[1771351373620,0.49556448,83.752,83.721,0.46176732]
[1771351374028,12.43572041,83.751,83.721,0.46176732]
[1771351374234,0.49556448,83.75,83.721,0.46176732]
[1771351374826,0.49556448,83.749,83.72,7.34784837]
[1771351375141,0.49556448,83.739,83.71,7.34784837]
[1771351375436,0.49556448,83.739,83.711,0.48924787]
[1771351376036,11.9420096,83.738,83.711,0.48924787]
[1771351377030,0.49556448,83.738,83.711,0.48924787]
[1771351377232,0.49556448,83.738,83.71,7.34784837]
[1771351377822,0.49556448,83.738,83.712,0.48924787]
[1771351379350,11.94215221,83.737,83.712,0.48924787]
[1771351380419,0.49556448,83.757,83.721,0.48924787]
[1771351380623,0.49556448,83.757,83.731,0.48924787]
[1771351381031,0.49556448,83.765,83.731,0.48924787]
[1771351381431,11.93830285,83.764,83.733,0.48924787]
[1771351381637,0.49556448,83.763,83.733,0.48924787]
[1771351382542,11.9385879,83.762,83.733,0.48924787]
[1771351383042,0.49556448,83.761,83.735,0.48924787]
[1771351383349,0.49556448,83.761,83.73,19.29093386]
[1771351383543,0.49556448,83.761,83.73,7.34784837]
[1771351383853,0.49556448,83.759,83.73,7.34784837]
[1771351384451,0.49556448,83.749,83.71,7.34784837]
[1771351384747,0.49556448,83.729,83.704,11.94676686]
[1771351384949,0.49556448,83.729,83.704,12.43601473]
[1771351385352,11.9420096,83.738,83.689,18.7]
[1771351385353,0.49556448,83.719,83.69,7.34784837]
[1771351385528,0.49556448,83.719,83.691,0.48924787]
[1771351385944,11.9420096,83.738,83.701,0.48924787]
[1771351386246,0.49556448,83.737,83.701,0.48924787]
[1771351386623,7.34784837,83.74,83.702,12.43639369]
[1771351386624,0.49556448,83.735,83.702,12.43639369]
[1771351386824,0.49556448,83.735,83.703,0.48924787]
[1771351387228,0.49556448,83.735,83.693,18.7]
[1771351387229,7.34784837,83.72,83.693,18.7]
[1771351387433,0.49556448,83.719,83.691,11.9487002]
[1771351387739,0.49556448,83.719,83.681,12.43928889]
[1771351388344,0.49556448,83.709,83.681,0.48924787]
[1771351388662,14.6,83.726,83.672,18.7]